Workbook

Sheet CSV-INPUT

Sheet Landing
B2: Mastitis Control Plan Herd Pattern Analysis Tool
C7: This tool relies on macros for functionality. If you are seeing this screen then
C8: macros are currently disabled. For most versions of Excel, you'll see a button
C9: labelled "Enable content" in the yellow toolbar above. Click this to continue.
C10: Alternatively, you may need to close then reopen the spreadsheet and choose
C11: "Enable macros" during opening.

Sheet FrontPage
B2: Herd Pattern Analysis Tool
C4: All cows - lactations 1+ | D4: Qtr 0 | E4: Qtr -1 | F4: Qtr -2 | G4: Qtr -3 | H4: Qtr -4 | I4: Qtr -5
B5: SCC | C5: BMSCC (,000 cells/ml)
C6: % Chronic
C7: % >200K
C8: Lactation New IMI (%)
C9: Dry Period New IMI (%)
C10: 'Apparent' Dry Period Cure (%)
B11: mastitis | C11: Dry Period Origin CM Rate (in 12)
C12: Lactating Period Origin CM Rate (in 12)
C13: Qrt CMIR (/100 cows/year)
C14: Cow CMIR (/100 cows/year)
C15: Clinical Mastitis Cure Rate (1st Case)
C16: Heifers - lactation 1 only
C17: Dry period new IMI (%)
C18: Dry Period Origin CM Rate (in 12)
D30: -1 | E30: =D30-3 -> -4 | F30: =E30-3 -> -7 | G30: -10 | H30: -13 | I30: -16
D31: -3 | E31: -6 | F31: -9 | G31: -12 | H31: -15 | I31: -18

Sheet DataQuality
B2: Herd Pattern Analysis Tool
C5: Data Quality Assessment | D5: Qtr 0 | E5: Qtr -1 | F5: Qtr -2 | G5: Qtr -3 | H5: Qtr -4 | I5: Qtr -5
C6: Number of Recordings | Q6: =IF(OR(D6=0,E6=0,F6=0,G6=0,H6=0,I6=0),1,IF(OR(D6<2,E6<2,F6<2,G6<2,H6<2,I6<2),1,2)) -> 1
C7: Number of Calvings (All Cows) | Q7: =IF(OR(D7<10,E7<10,F7<10,G7<10,H7<10,I7<10),0,IF(OR(D7<20,E7<20,F7<20,G7<20,H7<20,I7<20),1,2)) -> 0
C8: Number of Calvings (Heifers) | Q8: =IF(OR(D8<10,E8<10,F8<10,G8<10,H8<10,I8<10),0,IF(OR(D8<20,E8<20,F8<20,G8<20,H8<20,I8<20),1,2)) -> 0
C9: Number of Clinical Cases | Q9: =IF(OR(D9<5,E9<5,F9<5,G9<5,H9<5,I9<5),0,IF(OR(D9<20,E9<20,F9<20,G9<20,H9<20,I9<20),1,2)) -> 0
Q10: =MAX(Q6:Q9) -> 1
C11: Somatic Cell Count Data | D11: =IF(OR(D6=0,E6=0,F6=0,G6=0,H6=0,I6=0),"Insufficient SCC data for robust interpretation",IF(OR(D6<2,E6<2,F6<2,G6<2,H6<2,I6<2),"Interpret SCC data with care","Adequate SCC data available")) -> Insufficient SCC data for robust interpretation
C12: Number of Calvings (All Cows) | D12: =IF(OR(D7<10,E7<10,F7<10,G7<10,H7<10,I7<10),"Low numbers of cows calving - interpret with great care",IF(OR(D7<20,E7<20,F7<20,G7<20,H7<20,I7<20),"Low numbers of cows calving - interpret with care","Sufficient cows calving for robust interpretation")) -> Low numbers of cows calving - interpret with great care
C13: Number of Calvings (Heifers) | D13: =IF(OR(D8<10,E8<10,F8<10,G8<10,H8<10,I8<10),"Low numbers of heifers calving - interpret with great care",IF(OR(D8<20,E8<20,F8<20,G8<20,H8<20,I8<20),"Low numbers of heifers calving - interpret with care","Sufficient heifers calving for robust interpretation")) -> Low numbers of heifers calving - interpret with great care
C14: Clinical Mastitis Data | D14: =IF(OR(D9<5,E9<5,F9<5,G9<5,H9<5,I9<5),"Insufficient data for robust interpretation",IF(OR(D9<20,E9<20,F9<20,G9<20,H9<20,I9<20),"Interpret data with care","Adequate data available")) -> Insufficient data for robust interpretation
D16: =IF(OR(FrontPage!D5=0,FrontPage!E5=0,FrontPage!F5=0,FrontPage!G5=0,FrontPage!H5=0,FrontPage!I5=0),"BULK MILK SCC VALUE(S) REQUIRED","") -> BULK MILK SCC VALUE(S) REQUIRED
D29: =EOMONTH(TODAY(),D31) -> 2019-10-31 | E29: =EOMONTH(TODAY(),E31) -> 2019-07-31 | F29: 2019-04-30 | G29: 2019-01-31 | H29: 2018-10-31 | I29: 2018-07-31
D30: -1 | E30: =D30-3 -> -4 | F30: =E30-3 -> -7 | G30: -10 | H30: -13 | I30: -16
D31: -3 | E31: -6 | F31: -9 | G31: -12 | H31: -15 | I31: -18

Sheet Diagnosis1
B2: Herd Pattern Analysis Tool
C4: Analysis from
C5: ='CSV-INPUT'!B1 -> 00:00:00 | E5: Last 3 months | G5: Last 12 months | I5: 12 - 18 months ago
D6: Current | F6: Recent | H6: Historic | J6: Seasonality
C7: Contagious | D7: =ROUND(D60,0) -> 50 | E7: =D7 -> 50 | F7: =ROUND(E60,0) -> 50 | G7: =F7 -> 50 | H7: =F60 -> 37.5 | I7: =H7 -> 37.5 | J7: =G60 -> 81.94444443 | K7: =J7 -> 81.94444443
C8: Environmental Dry Period | D8: =ROUND(D61,0) -> 13 | E8: =D8 -> 13 | F8: =ROUND(E61,0) -> 38 | G8: 38 | H8: =F61 -> 25 | I8: =H8 -> 25 | J8: =G61 -> 85.18518514 | K8: =J8 -> 85.18518514
C9: Environmental Lactation | D9: =ROUND(D62,0) -> 63 | E9: 63 | F9: =ROUND(E62,0) -> 63 | G9: 63 | H9: 75 | I9: =H9 -> 75 | J9: 49.99999999 | K9: =J9 -> 49.99999999
C10: Specific Heifer Management | D10: =ROUND(D63,0) -> 0 | E10: 0 | F10: =ROUND(E63,0) -> 0 | G10: 0 | H10: 0 | I10: =H10 -> 0 | J10: 0 | K10: =J10 -> 0
C11: Clinical Mastitis Recurrence | D11: =IF(D64="NO DATA","NO DATA",ROUND(D64,0)) -> 50 | E11: 50 | F11: =IF(E64="NO DATA","NO DATA",ROUND(E64,0)) -> 50 | G11: 50 | H11: =IF(F64="NO DATA","NO DATA",ROUND(F64,0)) -> 50 | I11: =H11 -> 50
C13: Click for more info
C14: Key points | D14: ="Predominant current issue" & IF(O27=2,"s are "," is ") & C27 -> Predominant current issue is EL | K14: =IF(DataQuality!Q10>0,"Small numbers/missing info mean that at least","") -> Small numbers/missing info mean that at least
D15: ="Predominant recent issue"&IF(O28=2,"s are "," is ")&C28 -> Predominant recent issue is EL | K15: =IF(DataQuality!Q10=1,"one measure above should be interpreted with caution.", "one measure above may be unreliable.") -> one measure above should be interpreted with caution.
D16: ="Specific heifer management issues "&IF(E29=1,"","do not ")&"currently appear to be important" -> Specific heifer management issues do not currently appear to be important | K16: =IF(DataQuality!Q10>0,"Click the button below to go back and review this.","") -> Click the button below to go back and review this.
D17: =IF(E30="NO DATA","TAKE CARE THIS DATASET LACKS ROBUST CLINICAL MASTITIS DATA","Recurrent clinical mastitis is "&IF(E30=1,"","not")&" currently an important feature") -> Recurrent clinical mastitis is not currently an important feature
D18: ="There are "&IF(E31=1,"","no ")&"clear important seasonal patterns" -> There are clear important seasonal patterns
C19: Click to see references to research
E26: category | F26: Cont>75 | G26: EDP>75 | H26: EL>75 | I26: #>75 | J26: Max | K26: ContMax | L26: EDPMax | M26: ELMax | N26: MaxCat | O26: SingPlur | Q26: Cat | R26: FullText
C27: =VLOOKUP(E27,Q27:R33,2,FALSE) -> EL | D27: Curr | E27: =IF(I27>=1,CONCATENATE(F27,G27,H27),N27) -> L | F27: =IF(D7>=75,"C","") ->  | G27: =IF(D8>=75,"D","") ->  | H27: =IF(D9>=75,"L","") ->  | I27: =COUNTIF(D7:D9,">=75") -> 0 | J27: =MAX(D7:D9) -> 63 | K27: =IF(D7=J27,"C","") ->  | L27: =IF(J27=D8,"D","") ->  | M27: =IF(J27=D9,"L","") -> L | N27: =CONCATENATE(K27,L27,M27) -> L | O27: =IF(LEN(E27)=1,1,2) -> 1 | Q27: C | R27: contagious
C28: =VLOOKUP(E28,Q27:R33,2,FALSE) -> EL | D28: Recent | E28: =IF(I28>=1,CONCATENATE(F28,G28,H28),N28) -> L | F28: =IF(F7>=75,"C","") ->  | G28: =IF(F8>=75,"D","") ->  | H28: =IF(F9>=75,"L","") ->  | I28: =COUNTIF(F7:F9,">=75") -> 0 | J28: =MAX(F7:F9) -> 63 | K28: =IF(F7=J28,"C","") ->  | L28: =IF(J28=F8,"D","") ->  | M28: =IF(J28=F9,"L","") -> L | N28: =CONCATENATE(K28,L28,M28) -> L | O28: =IF(LEN(E28)=1,1,2) -> 1 | Q28: D | R28: EDP
D29: Heifer | E29: =IF(D10>=75,1,0) -> 0 | Q29: L | R29: EL
D30: Recurr | E30: =IF(D11="NO DATA","NO DATA",IF(D11>=75,1,0)) -> 0 | Q30: CD | R30: contagious and EDP
D31: Seas | E31: =IF(MAX(J7:J10)>=75,1,0) -> 1 | Q31: CL | R31: contagious and EL
Q32: CDL | R32: contagious, EL and EDP
Q33: DL | R33: EL and EDP
D59: Current | E59: Recent | F59: Historic | G59: Seasonality
C60: Contagious Issues | D60: 50 | E60: 50 | F60: 37.5 | G60: 81.94444443
C61: Dry Period Environmental Issues | D61: 12.5 | E61: 37.5 | F61: 25 | G61: 85.18518514
C62: Lactating Period Environmental Issues | D62: 62.5 | E62: 62.5 | F62: 75 | G62: 49.99999999
C63: Specific Heifer Management Issues | D63: 0 | E63: 0 | F63: 0 | G63: 0
C64: Clinical Mastitis Recurrence Issues | D64: 50 | E64: 50 | F64: 50

Sheet Diagnosis2
B2: Herd Pattern Analysis Tool
C6: current | D6: qtr -1 | E6: qtr -2 | F6: qtr -3 | G6: qtr -4 | H6: qtr -5 | J6: historic…………...trend……………..current
C7: =D60 -> 50 | D7: 0 | E7: 43.75 | F7: 31.25 | G7: 37.5 | H7: 0 | I7: Contagious
C8: 12.5 | D8: 0 | E8: 37.5 | F8: 25 | G8: 25 | H8: 0 | I8: Environmental Dry Period
C9: 62.5 | D9: 50 | E9: 37.5 | F9: 62.5 | G9: 75 | H9: 75 | I9: Environmental Lactating Period
C10: 0 | D10: 0 | E10: 0 | F10: 0 | G10: 0 | H10: 0 | I10: Specific Heifer Management
C11: 50 | D11: 0 | E11: 50 | F11: 0 | G11: 50 | H11: 0 | I11: Clinical Mastitis Recurrence
D59: Current Quarter | E59: Quarter -1 | F59: Quarter -2 | G59: Quarter -3 | H59: Quarter -4 | I59: Quarter -5
C60: Contagious Issues | D60: 50 | E60: 0 | F60: 43.75 | G60: 31.25 | H60: 37.5 | I60: 0
C61: Dry Period Environmental Issues | D61: 12.5 | E61: 0 | F61: 37.5 | G61: 25 | H61: 25 | I61: 0
C62: Lactating Period Environmental Issues | D62: 62.5 | E62: 50 | F62: 37.5 | G62: 62.5 | H62: 75 | I62: 75
C63: Specific Heifer Management Issues | D63: 0 | E63: 0 | F63: 0 | G63: 0 | H63: 0 | I63: 0
C64: Clinical Mastitis Recurrence Issues | D64: 50 | E64: 0 | F64: 50 | G64: 0 | H64: 50 | I64: 0

Sheet DiagReport
U1: category | V1: Cont>75 | W1: EDP>75 | X1: EL>75 | Y1: #>75 | Z1: Max | AA1: ContMax | AB1: EDPMax | AC1: ELMax | AD1: MaxCat | AE1: SingPlur | AG1: Cat | AH1: FullText
S2: =VLOOKUP(U2,AG2:AH8,2,FALSE) -> EL | T2: Curr | U2: =IF(Y2>=1,CONCATENATE(V2,W2,X2),AD2) -> L | V2: =IF(C7>=75,"C","") ->  | W2: =IF(C8>=75,"D","") ->  | X2: =IF(C9>=75,"L","") ->  | Y2: =COUNTIF(C7:C9,">=75") -> 0 | Z2: =MAX(C7:C9) -> 63 | AA2: =IF(C7=Z2,"C","") ->  | AB2: =IF(Z2=C8,"D","") ->  | AC2: =IF(Z2=C9,"L","") -> L | AD2: =CONCATENATE(AA2,AB2,AC2) -> L | AE2: =IF(LEN(U2)=1,1,2) -> 1 | AG2: C | AH2: contagious
S3: =VLOOKUP(U3,AG2:AH8,2,FALSE) -> EL | T3: Recent | U3: =IF(Y3>=1,CONCATENATE(V3,W3,X3),AD3) -> L | V3: =IF(E7>=75,"C","") ->  | W3: =IF(E8>=75,"D","") ->  | X3: =IF(E9>=75,"L","") ->  | Y3: =COUNTIF(E7:E9,">=75") -> 0 | Z3: =MAX(E7:E9) -> 63 | AA3: =IF(E7=Z3,"C","") ->  | AB3: =IF(Z3=E8,"D","") ->  | AC3: =IF(Z3=E9,"L","") -> L | AD3: =CONCATENATE(AA3,AB3,AC3) -> L | AE3: =IF(LEN(U3)=1,1,2) -> 1 | AG3: D | AH3: EDP
B4: Herd Pattern Analysis Tool | T4: Heifer | U4: =IF(C10>=75,1,0) -> 0 | AG4: L | AH4: EL
B5: ='CSV-INPUT'!B1 -> 00:00:00 | D5: Last 3 months | F5: Last 12 months | H5: 12 - 18 months ago | T5: Recurr | U5: =IF(C11="NO DATA","NO DATA",IF(C11>=75,1,0)) -> 0 | AG5: CD | AH5: contagious and EDP
C6: Current | E6: Recent | G6: Historic | I6: Seasonality | T6: Seas | U6: =IF(MAX(I7:I10)>=75,1,0) -> 1 | AG6: CL | AH6: contagious and EL
B7: Contagious | C7: =Diagnosis1!D7 -> 50 | D7: =C7 -> 50 | E7: =Diagnosis1!F7 -> 50 | F7: =E7 -> 50 | G7: =Diagnosis1!H7 -> 37.5 | H7: =G7 -> 37.5 | I7: =Diagnosis1!J7 -> 81.94444443 | J7: =I7 -> 81.94444443 | AG7: CDL | AH7: contagious, EL and EDP
B8: Environmental Dry Period | C8: =Diagnosis1!D8 -> 13 | D8: =C8 -> 13 | E8: =Diagnosis1!F8 -> 38 | F8: 38 | G8: =Diagnosis1!H8 -> 25 | H8: =G8 -> 25 | I8: =Diagnosis1!J8 -> 85.18518514 | J8: =I8 -> 85.18518514 | AG8: DL | AH8: EL and EDP
B9: Environmental Lactation | C9: =Diagnosis1!D9 -> 63 | D9: 63 | E9: =Diagnosis1!F9 -> 63 | F9: 63 | G9: =Diagnosis1!H9 -> 75 | H9: 75 | I9: =Diagnosis1!J9 -> 49.99999999 | J9: 49.99999999
B10: Specific Heifer Management | C10: =Diagnosis1!D10 -> 0 | D10: 0 | E10: =Diagnosis1!F10 -> 0 | F10: 0 | G10: =Diagnosis1!H10 -> 0 | H10: 0 | I10: =Diagnosis1!J10 -> 0 | J10: 0
B11: Clinical Mastitis Recurrence | C11: =Diagnosis1!D11 -> 50 | D11: 50 | E11: =Diagnosis1!F11 -> 50 | F11: 50 | G11: =Diagnosis1!H11 -> 50 | H11: 50
B13: Key points
B14: ="Predominant current issue" & IF(AE2=2,"s are "," is ") & S2 -> Predominant current issue is EL | H14: =IF(DataQuality!Q10>0,"Small numbers/missing info mean that at least","") -> Small numbers/missing info mean that at least
B15: ="Predominant recent issue"&IF(AE3=2,"s are "," is ")&S3 -> Predominant recent issue is EL | H15: =IF(DataQuality!Q10=1,"one measure above should be interpreted with caution.", "one measure above may be unreliable.") -> one measure above should be interpreted with caution.
B16: ="Specific heifer management issues "&IF(U4=1,"","do not ")&"currently appear to be important" -> Specific heifer management issues do not currently appear to be important
B17: =IF(U5="NO DATA","TAKE CARE THIS DATASET LACKS ROBUST CLINICAL MASTITIS DATA","Recurrent clinical mastitis is "&IF(U5=1,"","not")&" currently an important feature") -> Recurrent clinical mastitis is not currently an important feature
B18: ="There are "&IF(U6=1,"","no ")&"clear important seasonal patterns" -> There are clear important seasonal patterns
B21: =Diagnosis2!J6 -> historic…………...trend……………..current | F21: current | G21: qtr -1 | H21: qtr -2 | I21: qtr -3 | J21: qtr -4 | K21: qtr -5
C22: Contagious | F22: =Diagnosis2!C7 -> 50 | G22: =Diagnosis2!D7 -> 0 | H22: =Diagnosis2!E7 -> 43.75 | I22: =Diagnosis2!F7 -> 31.25 | J22: =Diagnosis2!G7 -> 37.5 | K22: =Diagnosis2!H7 -> 0
C23: Environmental Dry Period | F23: =Diagnosis2!C8 -> 12.5 | G23: =Diagnosis2!D8 -> 0 | H23: =Diagnosis2!E8 -> 37.5 | I23: =Diagnosis2!F8 -> 25 | J23: =Diagnosis2!G8 -> 25 | K23: =Diagnosis2!H8 -> 0
C24: Environmental Lact'n | F24: =Diagnosis2!C9 -> 62.5 | G24: =Diagnosis2!D9 -> 50 | H24: =Diagnosis2!E9 -> 37.5 | I24: =Diagnosis2!F9 -> 62.5 | J24: =Diagnosis2!G9 -> 75 | K24: =Diagnosis2!H9 -> 75
C25: Heifer Management | F25: =Diagnosis2!C10 -> 0 | G25: =Diagnosis2!D10 -> 0 | H25: =Diagnosis2!E10 -> 0 | I25: =Diagnosis2!F10 -> 0 | J25: =Diagnosis2!G10 -> 0 | K25: =Diagnosis2!H10 -> 0
C26: Clinical Mast Recurrence | F26: =Diagnosis2!C11 -> 50 | G26: =Diagnosis2!D11 -> 0 | H26: =Diagnosis2!E11 -> 50 | I26: =Diagnosis2!F11 -> 0 | J26: =Diagnosis2!G11 -> 50 | K26: =Diagnosis2!H11 -> 0

Sheet Inputs (hidden)
J1: Contagious vs Environmental | L1: Environmental Dry Period | N1: Environmental Lactating Period | P1: Heifer Management | R1: Recurrence Factor | X1: Collated Scores
B2: Current Qrt (0) | C2: Qrt -1 | D2: Qrt -2 | E2: Qrt -3 | F2: Qrt -4 | G2: Qrt -5 | H2: Data Source | J2: Low Score Threshold | K2: High Score Threshold | L2: Low Score Threshold | M2: High Score Threshold | N2: Low Score Threshold | O2: High Score Threshold | P2: Low Score Threshold | Q2: High Score Threshold | R2: Low Score Threshold | S2: High Score Threshold | U2: Parameter | V2: Qrt 0 Score | W2: Qrt -1 Score | X2: Qrt -2 Score | Y2: Qrt -3 Score | Z2: Qrt -4 Score | AA2: Qrt -5 Score
A3: COW DATA | U3: Contagious vs Environmental
A4: SCC Parameters | U4: BMSCC | V4: =IF(B55=0,0,IF(B55="",0,IF(B5<$J5,0,IF(B5>$K5,2,1)))) -> 0 | W4: 0 | X4: 0 | Y4: 0 | Z4: 0 | AA4: 0
A5: BMSCC (,000 cells/ml) | B5: 118 | D5: 155 | E5: 154 | F5: 144 | H5: Herd Mastitis Summary | J5: 200 | K5: 300 | U5: Chronics | V5: =IF(B55=0,0,IF(B55="",0,IF(B6<$J6,0,IF(B6>$K6,2,1)))) -> 0 | W5: 0 | X5: 0 | Y5: 0 | Z5: 0 | AA5: 0
A6: % Chronic | B6: 2.9 | D6: 5.8 | E6: 3.3 | F6: 1.6 | H6: Herd Mastitis Summary | J6: 10 | K6: 20 | U6: >200K | V6: =IF(B55=0,0,IF(B55="",0,IF(B7<$J7,0,IF(B7>$K7,2,1)))) -> 0 | W6: 0 | X6: 0 | Y6: 0 | Z6: 0 | AA6: 0
A7: % >200K | B7: 6.4 | D7: 14.5 | E7: 10.4 | F7: 7.2 | H7: Herd Mastitis Summary | J7: 20 | K7: 30 | U7: Chronic:>200K Ratio | V7: =IF(B55=0,0,IF(B55="",0,IF(B8<$J8,0,IF(B8>$K8,2,1)))) -> 1 | W7: 0 | X7: 1 | Y7: 0 | Z7: 0 | AA7: 0
A8: Chronic:>200K Ratio | B8: =B6/(B7+0.00000001) -> 0.4531249993 | C8: 0 | D8: 0.3999999997 | E8: 0.317307692 | F8: 0.2222222219 | G8: =G6/(G7+0.00000001) -> 0 | J8: 0.333333333 | K8: 0.666666666 | U8: DP Apparent Cure | V8: =IF(B55=0,0,IF(B55="",0,IF(B11>$J11,0,IF(B11<$K11,2,1)))) -> 2 | W8: 0 | X8: 2 | Y8: 2 | Z8: 2 | AA8: 0
A9: Lactation New IMI (%) | B9: 10 | D9: 6.4 | E9: 0 | F9: 8.7 | H9: Herd Mastitis Summary | L9: 15 | M9: 7 | N9: 7 | O9: 10 | U9: DP 'Actual' Cure | V9: =IF(B55=0,0,IF(B55="",0,IF(B12>$J12,0,IF(B12<$K12,2,1)))) -> 2 | W9: 0 | X9: 2 | Y9: 2 | Z9: 2 | AA9: 0
A10: Dry Period New IMI (%) | B10: 1.2 | D10: 2.1 | E10: 0 | F10: 5.1 | H10: Herd Mastitis Summary | L10: 10 | M10: 20 | N10: 33 | O10: 10 | U10: CM Cure | V10: =IF(B18<5,"NO DATA",IF(B55=0,0,IF(B55="",0,IF(B19>$J19,0,IF(B19<$K19,2,1))))) -> 2 | W10: 0 | X10: 1 | Y10: 1 | Z10: 1 | AA10: 0
A11: 'Apparent' Dry Period Cure (%) | B11: 0 | D11: 38 | E11: 0 | F11: 13.3 | H11: Herd Mastitis Summary | J11: 75 | K11: 60 | U11: CM Recurrence Factor | V11: =IF(B18<5,"NO DATA",IF(B20>$R20,0,IF(B20<$S20,2,1))) -> 1 | W11: =IF(C18<5,"NO DATA",IF(C20>$R20,0,IF(C20<$S20,2,1))) -> 0 | X11: 1 | Y11: 0 | Z11: 1 | AA11: 0
A12: 'Actual' Dry Period Cure (%) | B12: =B10+B11 -> 1.2 | C12: 0 | D12: 40.1 | E12: 0 | F12: 18.4 | G12: 0 | J12: 85 | K12: 75 | U12: Total 'Contagious' Score | V12: =SUM(V4:V11) -> 8 | W12: 0 | X12: 7 | Y12: 5 | Z12: 6 | AA12: 0
A13: Clinical Mastitis Parameters
A14: Dry Period Origin CM Rate (in 12) | B14: 0.26 | C14: 0.31 | D14: 0.69 | E14: 0 | F14: 1.18 | G14: 0.56 | H14: Herd Mastitis Summary | L14: 1 | M14: 2 | U14: Dry Period Environmental
A15: Lactating Period Origin CM Rate (in 12) | B15: 1.26 | C15: 1.09 | D15: 0.98 | E15: 2.15 | F15: 2.84 | G15: 2.18 | H15: Herd Mastitis Summary | N15: 2 | O15: 4 | U15: DP New IMI | V15: =IF(B55=0,0,IF(B55="",0,IF(B10<$L10,0,IF(B10>$M10,2,1)))) -> 0 | W15: 0 | X15: 0 | Y15: 0 | Z15: 0 | AA15: 0
A16: DPO Ratio | B16: =B14/(B14+B15+0.000000001) -> 0.1710526315 | C16: =C14/(C14+C15+0.000000001) -> 0.2214285713 | D16: 0.4131736524 | E16: 0 | F16: 0.2935323382 | G16: 0.204379562 | L16: 0.33333333 | M16: 0.66666666 | N16: 0.6666667 | O16: 0.33333333 | U16: Lact New IMI | V16: =IF(B55=0,0,IF(B55="",0,IF(B9>$L9,0,IF(B9<$M9,2,1)))) -> 1 | W16: 0 | X16: 2 | Y16: 2 | Z16: 1 | AA16: 0
A17: Qrt CMIR (/100 cows/year) | B17: 22 | C17: 16 | D17: 25 | E17: 28 | F17: 61 | G17: 35 | H17: Herd Mastitis Summary | U17: DPO CM | V17: =IF(B18<5,"NO DATA",IF(B14<$L14,0,IF(B14>$M14,2,1))) -> 0 | W17: =IF(C18<5,"NO DATA",IF(C14<$L14,0,IF(C14>$M14,2,1))) -> 0 | X17: 0 | Y17: 0 | Z17: 1 | AA17: 0
A18: Cow CMIR (/100 cows/year) | B18: 22 | C18: 16 | D18: 24 | E18: 28 | F18: 59 | G18: 31 | H18: Herd Mastitis Summary | U18: DPO Ratio | V18: =IF(B18<5,"NO DATA",IF(B16<$L16,0,IF(B16>$M16,2,1))) -> 0 | W18: =IF(C18<5,"NO DATA",IF(C16<$L16,0,IF(C16>$M16,2,1))) -> 0 | X18: 1 | Y18: 0 | Z18: 0 | AA18: 0
A19: Clinical Mastitis Cure Rate (1st Case) | B19: 20 | C19: 26 | D19: 30 | E19: 35 | F19: 27 | G19: 22 | H19: 12 month rolling 1st clinical case cure rate | J19: 40 | K19: 25 | U19: Total 'Dry Period' Score | V19: =SUM(V15:V18) -> 1 | W19: 0 | X19: 3 | Y19: 2 | Z19: 2 | AA19: 0
A20: Clinical Mastitis Recurrence Factor | B20: =((B14+B15)*8.5)/((B17+B18+0.0000000001)/2) -> 0.5872727273 | C20: =((C14+C15)*8.5)/((C17+C18+0.0000000001)/2) -> 0.74375 | D20: 0.5793877551 | E20: 0.6526785714 | F20: 0.5695 | G20: 0.7057575758 | R20: 0.6 | S20: 0.4
A21: HEIFER DATA | U21: Lactating Period Environmental
A22: SCC Parameters | U22: DP New IMI | V22: =IF(B55=0,0,IF(B55="",0,IF(B10>$N10,0,IF(B10<$O10,2,1)))) -> 2 | W22: 0 | X22: 2 | Y22: 2 | Z22: 2 | AA22: 0
U23: Lact New IMI | V23: =IF(B55=0,0,IF(B55="",0,IF(B9<$N9,0,IF(B9>$O9,2,1)))) -> 1 | W23: 0 | X23: 0 | Y23: 0 | Z23: 1 | AA23: 0
U24: LPO CM | V24: =IF(B18<5,"NO DATA",IF(B15<$N15,0,IF(B15>$O15,2,1))) -> 0 | W24: =IF(C18<5,"NO DATA",IF(C15<$N15,0,IF(C15>$O15,2,1))) -> 0 | X24: 0 | Y24: 1 | Z24: 1 | AA24: 1
U25: LPO Ratio | V25: =IF(B18<5,"NO DATA",IF(B16>$N16,0,IF(B16<$O16,2,1))) -> 2 | W25: =IF(C18<5,"NO DATA",IF(C16>$N16,0,IF(C16<$O16,2,1))) -> 2 | X25: 1 | Y25: 2 | Z25: 2 | AA25: 2
U27: Total 'Lactating Period' Score | V27: =SUM(V22:V25) -> 5 | W27: 2 | X27: 3 | Y27: 5 | Z27: 6 | AA27: 3
A30: SUM of No Infected | B30: =SUM(B27:B29) -> 0 | C30: 0 | D30: 0 | E30: 0 | F30: 0 | G30: 0
A31: Heifer DPIMI Rate (Qrt) | B31: =B30/B26*100 -> 
A32: Clinical mastitis Parameters
U33: Heifer Management
U34: DP New IMI | V34: =IF(B55=0,0,IF(B55="",0,IF(B47<$P47,0,IF(B47>$Q47,2,1)))) -> 0 | W34: 0 | X34: 0 | Y34: 0 | Z34: 0 | AA34: 0
U35: DPO CM | V35: =IF(B18<5,"NO DATA",IF(B48<$P48,0,IF(B48>$Q48,2,1))) -> 0 | W35: =IF(C18<5,"NO DATA",IF(C48<$P48,0,IF(C48>$Q48,2,1))) -> 0 | X35: 0 | Y35: 0 | Z35: 0 | AA35: 0
U40: Total 'Heifer' Score | V40: =SUM(V34:V35) -> 0 | W40: 0 | X40: 0 | Y40: 0 | Z40: 0 | AA40: 0
U41: Relative 'Heifer' Score | V41: =V40/((V19+0.0000000001)/2) -> 0 | W41: =W40/((W19+0.0000000001)/2) -> 0 | X41: 0 | Y41: 0 | Z41: 0 | AA41: 0
A43: Heifer DP (Month 1) - Adjusted Rate | B43: =B40*B37 -> 0 | C43: 0 | D43: 0 | E43: 0 | F43: 0 | G43: 0
A44: Heifer DP (Month 2) - Adjusted Rate | B44: 0 | C44: 0 | D44: 0 | E44: 0 | F44: 0 | G44: 0
A45: Heifer DP (Month 3) - Adjusted Rate | B45: 0 | C45: 0 | D45: 0 | E45: 0 | F45: 0 | G45: 0
A46: Calculated Rate | B46: =B43+B44+B45 -> 0 | C46: 0 | D46: 0 | E46: 0 | F46: 0 | G46: 0
A47: Dry Period New IMI (%) | B47: 0 | D47: 3.6 | E47: 0 | F47: 0 | P47: 10 | Q47: 20 | U47: Recurrence
A48: Dry Period Origin CM Rate (in 12) | B48: 0 | C48: 0.31 | D48: 0.15 | E48: 0 | F48: 0.26 | G48: 0 | P48: 1 | Q48: 2 | U48: Recurrence Score | V48: =IF(B18<5,"NO DATA",IF(B20>$R20,0,IF(B20<$S20,2,1))) -> 1 | W48: =IF(C18<5,"NO DATA",IF(C20>$R20,0,IF(C20<$S20,2,1))) -> 0 | X48: 1 | Y48: 0 | Z48: 1 | AA48: 0
A50: Number of Recordings | B50: 1 | C50: 0 | D50: 2 | E50: 1 | F50: 4 | G50: 0 | AA50: Notes
A51: Number of Calvings (All Cows) | B51: 141 | C51: 92 | D51: 123 | E51: 57 | F51: 132 | G51: 124 | AA51: Cows = All females parity >=1 (ie includes heifers)
A52: Number of Calvings (Heifers) | B52: 28 | C52: 23 | D52: 10 | E52: 29 | F52: 19 | G52: 30 | AA52: Heifers = Parity =1 (ie heifers alone)
A53: Number of Clinical Cases | B53: 22 | C53: 16 | D53: 24 | E53: 28 | F53: 59 | G53: 31 | AA53: Select current quarter based on either season (housed animals) or key management change (eg housing or turnout)
A55: BMSCC (Again just in case something different about refs to csv import) | B55: =B5 -> 118 | C55: =C5 -> 0 | D55: 155 | E55: 154 | F55: 144 | G55: 0

Sheet Calculations (hidden)
D1: Collated Scores
A2: Parameter | B2: Qrt 0 Score | C2: Qrt -1 Score | D2: Qrt -2 Score | E2: Qrt -3 Score | F2: Qrt -4 Score | G2: Qrt -5 Score | H2: Max Score | I2: Min Score | J2: Mean Score | K2: Seasonality Score
A3: Contagious vs Environmental | O3: Current | P3: Recent | Q3: Historic | R3: Seasonality
A4: BMSCC | B4: =Inputs!V4 -> 0 | C4: =Inputs!W4 -> 0 | D4: =Inputs!X4 -> 0 | E4: =Inputs!Y4 -> 0 | F4: =Inputs!Z4 -> 0 | G4: =Inputs!AA4 -> 0 | N4: Contagious Issues | O4: =B13 -> 50 | P4: =MAX(B13:E13) -> 50 | Q4: =MAX(F13:G13) -> 37.5 | R4: =K12 -> 81.94444443
A5: Chronics | B5: =Inputs!V5 -> 0 | C5: =Inputs!W5 -> 0 | D5: =Inputs!X5 -> 0 | E5: =Inputs!Y5 -> 0 | F5: =Inputs!Z5 -> 0 | G5: =Inputs!AA5 -> 0 | N5: Dry Period Environmental Issues | O5: =B21 -> 12.5 | P5: =MAX(B21:E21) -> 37.5 | Q5: =MAX(F21:G21) -> 25 | R5: =K20 -> 85.18518514
A6: >200K | B6: =Inputs!V6 -> 0 | C6: =Inputs!W6 -> 0 | D6: =Inputs!X6 -> 0 | E6: =Inputs!Y6 -> 0 | F6: =Inputs!Z6 -> 0 | G6: =Inputs!AA6 -> 0 | N6: Lactating Period Environmental Issues | O6: =B29 -> 62.5 | P6: =MAX(B29:E29) -> 62.5 | Q6: =MAX(F29:G29) -> 75 | R6: =K28 -> 49.99999999
A7: Chronic:>200K Ratio | B7: =Inputs!V7 -> 1 | C7: =Inputs!W7 -> 0 | D7: =Inputs!X7 -> 1 | E7: =Inputs!Y7 -> 0 | F7: =Inputs!Z7 -> 0 | G7: =Inputs!AA7 -> 0 | N7: Specific Heifer Management Issues | O7: =B36 -> 0 | P7: =MAX(B36:E36) -> 0 | Q7: =MAX(F36:G36) -> 0 | R7: =K35 -> 0
A8: DP Apparent Cure | B8: =Inputs!V8 -> 2 | C8: =Inputs!W8 -> 0 | D8: =Inputs!X8 -> 2 | E8: =Inputs!Y8 -> 2 | F8: =Inputs!Z8 -> 2 | G8: =Inputs!AA8 -> 0 | N8: Clinical Mastitis Recurrence Issues | O8: =B40 -> 50 | P8: =MAX(B40:E40) -> 50 | Q8: =MAX(F40:G40) -> 50
A9: DP 'Actual' Cure | B9: =Inputs!V9 -> 2 | C9: =Inputs!W9 -> 0 | D9: =Inputs!X9 -> 2 | E9: =Inputs!Y9 -> 2 | F9: =Inputs!Z9 -> 2 | G9: =Inputs!AA9 -> 0
A10: CM Cure | B10: =Inputs!V10 -> 2 | C10: =Inputs!W10 -> 0 | D10: =Inputs!X10 -> 1 | E10: =Inputs!Y10 -> 1 | F10: =Inputs!Z10 -> 1 | G10: =Inputs!AA10 -> 0
A11: CM Recurrence Factor | B11: =Inputs!V11 -> 1 | C11: =Inputs!W11 -> 0 | D11: =Inputs!X11 -> 1 | E11: =Inputs!Y11 -> 0 | F11: =Inputs!Z11 -> 1 | G11: =Inputs!AA11 -> 0 | N11: Notes:
A12: Total 'Contagious' Score | B12: =Inputs!V12 -> 8 | C12: =Inputs!W12 -> 0 | D12: =Inputs!X12 -> 7 | E12: =Inputs!Y12 -> 5 | F12: =Inputs!Z12 -> 6 | G12: =Inputs!AA12 -> 0 | H12: =MAX(B12:G12)+0.000000001 -> 8.000000001 | I12: =MIN(B12:G12)+0.000000001 -> 1e-09 | J12: =AVERAGE(B12:G12)+0.000000001 -> 4.333333334 | K12: =(100-(((I12)/H12)*100)+(100-(((J12)/H12)*100)+(100-(((I12)/J12)*100))))/3 -> 81.94444443 | N12: Current = This quarter
A13: % 'Contagious' Score | B13: =IF(B10="NO DATA",B12/12*100,IF(Inputs!B55=0,B12/1*100,IF(Inputs!B55="",B12/1*100,B12/16*100))) -> 50 | C13: =IF(C10="NO DATA",C12/12*100,IF(Inputs!C55=0,C12/1*100,IF(Inputs!C55="",C12/1*100,C12/16*100))) -> 0 | D13: =IF(D10="NO DATA",D12/12*100,IF(Inputs!D55=0,D12/1*100,IF(Inputs!D55="",D12/1*100,D12/16*100))) -> 43.75 | E13: =IF(E10="NO DATA",E12/12*100,IF(Inputs!E55=0,E12/1*100,IF(Inputs!E55="",E12/1*100,E12/16*100))) -> 31.25 | F13: =IF(F10="NO DATA",F12/12*100,IF(Inputs!F55=0,F12/1*100,IF(Inputs!F55="",F12/1*100,F12/16*100))) -> 37.5 | G13: =IF(G10="NO DATA",G12/12*100,IF(Inputs!G55=0,G12/1*100,IF(Inputs!G55="",G12/1*100,G12/16*100))) -> 0 | N13: Recent = This year
N14: Historic = > 1 year, but < 18 months
A15: Dry Period Environmental
A16: DP New IMI | B16: =Inputs!V15 -> 0 | C16: =Inputs!W15 -> 0 | D16: =Inputs!X15 -> 0 | E16: =Inputs!Y15 -> 0 | F16: =Inputs!Z15 -> 0 | G16: =Inputs!AA15 -> 0
A17: Lact New IMI | B17: =Inputs!V16 -> 1 | C17: =Inputs!W16 -> 0 | D17: =Inputs!X16 -> 2 | E17: =Inputs!Y16 -> 2 | F17: =Inputs!Z16 -> 1 | G17: =Inputs!AA16 -> 0
A18: DPO CM | B18: =Inputs!V17 -> 0 | C18: =Inputs!W17 -> 0 | D18: =Inputs!X17 -> 0 | E18: =Inputs!Y17 -> 0 | F18: =Inputs!Z17 -> 1 | G18: =Inputs!AA17 -> 0
A19: DPO Ratio | B19: =Inputs!V18 -> 0 | C19: =Inputs!W18 -> 0 | D19: =Inputs!X18 -> 1 | E19: =Inputs!Y18 -> 0 | F19: =Inputs!Z18 -> 0 | G19: =Inputs!AA18 -> 0
A20: Total 'Dry Period' Score | B20: =Inputs!V19 -> 1 | C20: =Inputs!W19 -> 0 | D20: =Inputs!X19 -> 3 | E20: =Inputs!Y19 -> 2 | F20: =Inputs!Z19 -> 2 | G20: =Inputs!AA19 -> 0 | H20: =MAX(B20:G20)+0.000000001 -> 3.000000001 | I20: =MIN(B20:G20)+0.000000001 -> 1e-09 | J20: =AVERAGE(B20:G20)+0.000000001 -> 1.333333334 | K20: =(100-(((I20)/H20)*100)+(100-(((J20)/H20)*100)+(100-(((I20)/J20)*100))))/3 -> 85.18518514
A21: % 'Dry Period' Score | B21: =IF(B18="NO DATA",B20/4*100,IF(Inputs!B55=0,B20/4*100,B20/8*100)) -> 12.5 | C21: =IF(C18="NO DATA",C20/4*100,IF(Inputs!C55=0,C20/4*100,C20/8*100)) -> 0 | D21: =IF(D18="NO DATA",D20/4*100,IF(Inputs!D55=0,D20/4*100,D20/8*100)) -> 37.5 | E21: =IF(E18="NO DATA",E20/4*100,IF(Inputs!E55=0,E20/4*100,E20/8*100)) -> 25 | F21: =IF(F18="NO DATA",F20/4*100,IF(Inputs!F55=0,F20/4*100,F20/8*100)) -> 25 | G21: =IF(G18="NO DATA",G20/4*100,IF(Inputs!G55=0,G20/4*100,G20/8*100)) -> 0
A23: Lactating Period Environmental
A24: DP New IMI | B24: =Inputs!V22 -> 2 | C24: =Inputs!W22 -> 0 | D24: =Inputs!X22 -> 2 | E24: =Inputs!Y22 -> 2 | F24: =Inputs!Z22 -> 2 | G24: =Inputs!AA22 -> 0
A25: Lact New IMI | B25: =Inputs!V23 -> 1 | C25: =Inputs!W23 -> 0 | D25: =Inputs!X23 -> 0 | E25: =Inputs!Y23 -> 0 | F25: =Inputs!Z23 -> 1 | G25: =Inputs!AA23 -> 0
A26: LPO CM | B26: =Inputs!V24 -> 0 | C26: =Inputs!W24 -> 0 | D26: =Inputs!X24 -> 0 | E26: =Inputs!Y24 -> 1 | F26: =Inputs!Z24 -> 1 | G26: =Inputs!AA24 -> 1
A27: LPO Ratio | B27: =Inputs!V25 -> 2 | C27: =Inputs!W25 -> 2 | D27: =Inputs!X25 -> 1 | E27: =Inputs!Y25 -> 2 | F27: =Inputs!Z25 -> 2 | G27: =Inputs!AA25 -> 2
A28: Total 'Lactating Period' Score | B28: =Inputs!V27 -> 5 | C28: =Inputs!W27 -> 2 | D28: =Inputs!X27 -> 3 | E28: =Inputs!Y27 -> 5 | F28: =Inputs!Z27 -> 6 | G28: =Inputs!AA27 -> 3 | H28: =MAX(B28:G28)+0.000000001 -> 6.000000001 | I28: =MIN(B28:G28)+0.000000001 -> 2.000000001 | J28: =AVERAGE(B28:G28)+0.000000001 -> 4.000000001 | K28: =(100-(((I28)/H28)*100)+(100-(((J28)/H28)*100)+(100-(((I28)/J28)*100))))/3 -> 49.99999999
A29: % 'Lactating Period' Score | B29: =IF(B26="NO DATA",B28/4*100,IF(Inputs!B55=0,B28/4*100,B28/8*100)) -> 62.5 | C29: =IF(C26="NO DATA",C28/4*100,IF(Inputs!C55=0,C28/4*100,C28/8*100)) -> 50 | D29: =IF(D26="NO DATA",D28/4*100,IF(Inputs!D55=0,D28/4*100,D28/8*100)) -> 37.5 | E29: =IF(E26="NO DATA",E28/4*100,IF(Inputs!E55=0,E28/4*100,E28/8*100)) -> 62.5 | F29: =IF(F26="NO DATA",F28/4*100,IF(Inputs!F55=0,F28/4*100,F28/8*100)) -> 75 | G29: =IF(G26="NO DATA",G28/4*100,IF(Inputs!G55=0,G28/4*100,G28/8*100)) -> 75
A31: Heifer Management
A32: DP New IMI | B32: =Inputs!V34 -> 0 | C32: =Inputs!W34 -> 0 | D32: =Inputs!X34 -> 0 | E32: =Inputs!Y34 -> 0 | F32: =Inputs!Z34 -> 0 | G32: =Inputs!AA34 -> 0
A33: DPO CM | B33: =Inputs!V35 -> 0 | C33: =Inputs!W35 -> 0 | D33: =Inputs!X35 -> 0 | E33: =Inputs!Y35 -> 0 | F33: =Inputs!Z35 -> 0 | G33: =Inputs!AA35 -> 0
A34: Total 'Heifer' Score | B34: =Inputs!V40 -> 0 | C34: =Inputs!W40 -> 0 | D34: =Inputs!X40 -> 0 | E34: =Inputs!Y40 -> 0 | F34: =Inputs!Z40 -> 0 | G34: =Inputs!AA40 -> 0
A35: Relative 'Heifer' Score | B35: =Inputs!V41 -> 0 | C35: =Inputs!W41 -> 0 | D35: =Inputs!X41 -> 0 | E35: =Inputs!Y41 -> 0 | F35: =Inputs!Z41 -> 0 | G35: =Inputs!AA41 -> 0 | H35: =MAX(B35:G35)+0.000000001 -> 1e-09 | I35: =MIN(B35:G35)+0.000000001 -> 1e-09 | J35: =AVERAGE(B35:G35)+0.000000001 -> 1e-09 | K35: =(100-(((I35)/H35)*100)+(100-(((J35)/H35)*100)+(100-(((I35)/J35)*100))))/3 -> 0
A36: % 'Heifer' Score | B36: =IF(B35/(B34+0.0000000001)*100<101,B35/(B34+0.0000000001)*100,100) -> 0 | C36: =IF(C35/(C34+0.0000000001)*100<101,C35/(C34+0.0000000001)*100,100) -> 0 | D36: 0 | E36: 0 | F36: 0 | G36: 0
A38: Recurrence
A39: Recurrence Score | B39: =Inputs!V48 -> 1 | C39: =Inputs!W48 -> 0 | D39: =Inputs!X48 -> 1 | E39: =Inputs!Y48 -> 0 | F39: =Inputs!Z48 -> 1 | G39: =Inputs!AA48 -> 0
A40: % Recurrence Score | B40: =IF(B39="NO DATA","NO DATA",B39/2*100) -> 50 | C40: =IF(C39="NO DATA","NO DATA",C39/2*100) -> 0 | D40: 50 | E40: 0 | F40: 50 | G40: 0

Sheet Diagnosis (hidden)
C2: Current Quarter | D2: Quarter -1 | E2: Quarter -2 | F2: Quarter -3 | G2: Quarter -4 | H2: Quarter -5 | J2: Current | K2: Recent | L2: Historic | M2: Seasonality
B3: Contagious Issues | C3: =Calculations!B13 -> 50 | D3: =Calculations!C13 -> 0 | E3: =Calculations!D13 -> 43.75 | F3: =Calculations!E13 -> 31.25 | G3: =Calculations!F13 -> 37.5 | H3: =Calculations!G13 -> 0 | J3: =C3 -> 50 | K3: =MAX(C3:F3) -> 50 | L3: =MAX(G3:H3) -> 37.5 | M3: =Calculations!K12 -> 81.94444443
B4: Dry Period Environmental Issues | C4: =Calculations!B21 -> 12.5 | D4: =Calculations!C21 -> 0 | E4: =Calculations!D21 -> 37.5 | F4: =Calculations!E21 -> 25 | G4: =Calculations!F21 -> 25 | H4: =Calculations!G21 -> 0 | J4: =C4 -> 12.5 | K4: =MAX(C4:F4) -> 37.5 | L4: =MAX(G4:H4) -> 25 | M4: =Calculations!K20 -> 85.18518514
B5: Lactating Period Environmental Issues | C5: =Calculations!B29 -> 62.5 | D5: =Calculations!C29 -> 50 | E5: =Calculations!D29 -> 37.5 | F5: =Calculations!E29 -> 62.5 | G5: =Calculations!F29 -> 75 | H5: =Calculations!G29 -> 75 | J5: =C5 -> 62.5 | K5: =MAX(C5:F5) -> 62.5 | L5: =MAX(G5:H5) -> 75 | M5: =Calculations!K28 -> 49.99999999
B6: Specific Heifer Management Issues | C6: =Calculations!B36 -> 0 | D6: =Calculations!C36 -> 0 | E6: =Calculations!D36 -> 0 | F6: =Calculations!E36 -> 0 | G6: =Calculations!F36 -> 0 | H6: =Calculations!G36 -> 0 | J6: =C6 -> 0 | K6: =MAX(C6:F6) -> 0 | L6: =MAX(G6:H6) -> 0 | M6: =Calculations!K35 -> 0
B7: Clinical Mastitis Recurrence Issues | C7: =Calculations!B40 -> 50 | D7: =Calculations!C40 -> 0 | E7: =Calculations!D40 -> 50 | F7: =Calculations!E40 -> 0 | G7: =Calculations!F40 -> 50 | H7: =Calculations!G40 -> 0 | J7: =C7 -> 50 | K7: =IF(AND(C7="NO DATA",D7="NO DATA",E7="NO DATA",F7="NO DATA"),"NO DATA",MAX(C7:F7)) -> 50 | L7: =IF(AND(G7="NO DATA",H7="NO DATA"),"NO DATA",MAX(G7:H7)) -> 50
B10: Notes:
B11: Current = This quarter
B12: Recent = This year
B13: Historic = > 1 year, but < 18 months
B16: error check for e.g. no data or calc error
B17: with warning for Dx
B18: small n warning? | C18: although won't know what n is specifically?

Sheet Initial Design (hidden)
A1: All in the last 1/4 | B1: Cows | C1: Heifers | D1: Source (Cows)
A2: BMSCC (,000 cells/ml) | D2: Herd Mastitis Summary
A3: % Chronic | D3: Herd Mastitis Summary
A4: % >200K | D4: Herd Mastitis Summary
A5: Lactation New IMI (%) | D5: Herd Mastitis Summary
A6: Dry Period New IMI (%) | C6: =B28 -> 20 | D6: Herd Mastitis Summary
A7: 'Apparent' Dry Period Cure (%) | D7: Herd Mastitis Summary
A9: Dry Period Origin CM Rate (in 12) | C9: =B22 -> 1.333333333 | D9: Herd Mastitis Summary
A10: Lactating Period Origin CM Rate (in 12) | D10: Herd Mastitis Summary
A11: Qrt CMIR (/100 cows/year) | D11: Herd Mastitis Summary
A12: Cow CMIR (/100 cows/year) | D12: Herd Mastitis Summary
A15: Clinical Mastitis Cure Rate | D15: 12 month rolling 1st clinical case cure rate
B17: Risk | C17: Rate | D17: Risk Proportion | E17: Adjusted Rate
A18: Heifer DP (Month 1) | B18: 12 | C18: 1 | D18: =B18/B$21 -> 0.3333333333 | E18: =C18*D18 -> 0.3333333333
A19: Heifer DP (Month 2) | B19: 12 | C19: 1 | D19: =B19/B$21 -> 0.3333333333 | E19: =C19*D19 -> 0.3333333333
A20: Heifer DP (Month 3) | B20: 12 | C20: 2 | D20: =B20/B$21 -> 0.3333333333 | E20: =C20*D20 -> 0.6666666667
B21: =SUM(B18:B20) -> 36
A22: Calculated Rate | B22: =E18+E19+E20 -> 1.333333333
B23: No 1st Reorded | C23: No Infected
A24: Heifer DPIMI (Month 1) | B24: 10 | C24: 1
A25: Heifer DPIMI (Month 2) | B25: 10 | C25: 2
A26: Heifer DPIMI (Month 3) | B26: 10 | C26: 3
B27: =SUM(B24:B26) -> 30 | C27: =SUM(C24:C26) -> 6
A28: Heifer DPIMI Rate (Qrt) | B28: =C27/B27*100 -> 20
A30: X 6 qrts

Sheet Glossary
A1: INPUT PARAMETERS
A2: Input parameters - General
A3: There are 17 separate input parameters required for Somatic Cell Count (SCC) and Clinical Mastitis (CM) parameters
A4: Of these, 13 are required to be input by the advisor and four are calculated by the tool itself
A5: These 17 parameters are then input for six 3-month periods, meaning the auto diagnosis tool requires over 100 separate inputs to run effectively.
A6: Input parameters - Somatic Cell Count (SCC) data
A7: Note 1: ALL parameters are averaged over all recordings in a three month period and are designed to be used for herds that are engaged in regular (i.e. MONTHLY) milk recording to gain maximum benefit from the output.
A8: Note 2: ALL parameters are reported for the previous SIX quarters – i.e. the bulk milk SCC is averaged for the last three recordings (‘Current Quarter’), the three recordings before this (‘Quarter -1’), the three recordings before that (‘Quarter -2’) and so on. In this way, the SCC parameters input cover the previous 18 monthly recordings, allowing for seasonality (if present) to be evaluated. If not monthly recording, the average of the previous three recordings can still be used, but this will inevitably lead to a less ‘robust’ diagnosis.
A10: Bulk milk SCC (‘000/ml): The calculated herd average SCC at each milk recording
A11: % of the herd ‘chronic’: The % of cows in the herd that remain above a threshold of 200,000 cells/ml on more than one occasion in the last three recordings
A12: % of the herd >200,000 cells/ml: The % of cows in the herd that are above a threshold of 200,000 cells/ml at the milk recording
A13: Chronic: >200 ratio: The proportion of the cows >200,000 cells/ml that are chronic – calculated by the tool automatically
A14: Lactation New Intra Mammary Infection (IMI) Rate (%): The rate of new infection as measured by an increase in somatic cell count for lactating cows between successive milk recordings
A15: Dry Period New Intra Mammary Infection (IMI) Rate (%): The rate of new infection as measured by an increase in somatic cell count across the dry period (i.e. ‘low’ cell count at drying-off but ‘high’ cell count after calving)
A16: ‘Apparent’ Dry Period Cure Rate (%): The rate of cure as measured by a decrease in somatic cell count across the dry period (i.e. ‘high’ cell count at drying-off but ‘low’ cell count after calving)
A17: ‘Actual’ Dry Period Cure Rate (%): The sum of the dry period cure rate as measured by somatic cell count across the dry period and the dry period new infection rate
A18: Heifer Dry Period New Intra Mammary Infection (IMI) Rate (%): The rate of new infection as measured by somatic cell count for parity one cows (i.e. ‘high’ cell count at first milk recording)
A20: Input parameters - Clinical Mastitis (CM) data
A21: Note 1: ALL parameters are averaged over THREE months and are designed to be used for herds that report ALL cases of clinical mastitis detected in the parlour (whether treated or not) to gain maximum benefit from the output.
A22: Note 2: ALL parameters are reported for the previous SIX quarters – i.e. the cow clinical mastitis incidence rate is averaged for the last three months (‘Current Quarter’), the three months before this (‘Quarter -1’), the three months before that (‘Quarter -2’) and so on. In this way, the CM parameters input cover the previous 18 months, allowing for seasonality (if present) to be evaluated. If herds are not reporting clinical mastitis cases regularly or not reporting cases fully this will inevitably lead to a less ‘robust’ diagnosis.
A24: Dry Period Origin CM Rate (in 12): The proportion of cows affected with a new (first or ‘index’) case of clinical mastitis within 30 days of calving, out of every 12 cows that are ‘at-risk’ (i.e. cows that are eligible)
A25: Lactating Period Origin CM Rate (in 12): The proportion of cows affected with a new (first or ‘index’) case of clinical mastitis after 30 days of lactation, out of every 12 cows that are ‘at-risk’ (i.e. cows that are eligible)
A26: Dry Period Origin Ratio: The ratio of new (first or ‘index’) cases that are attributable to the dry period, expressed as a proportion of all new cases – calculated by the tool automatically
A27: Quarter CM Incidence Rate (/100 cows/year): The incidence rate of all quarter cases of clinical mastitis expressed as a incidence rate per 100 cows/year
A28: Cow CM Incidence Rate (/100 cows/year): The incidence rate of all cow cases of clinical mastitis expressed as a incidence rate per 100 cows/year
A29: Clinical Mastitis Cure Rate (1st Case): The proportion of new (first or ‘index’) cases that are cured as measured by non-recurrence of clinical mastitis and a reduction in somatic cell count
A30: Clinical Mastitis Recurrence Factor: The total number of new cases expressed as a proportion of the all clinical mastitis case rate to evaluate the impact of clinical mastitis recurrence – calculated by the tool automatically
A31: Heifer Dry Period Origin CM Rate (in 12): The proportion of parity one cows affected with a new (first or ‘index’) case of clinical mastitis within 30 days of calving, out of every 12 parity one cows that are ‘at-risk’ (i.e. parity one cows that are eligible)
A33: OUTPUT PARAMETERS
A34: Output parameters - General
A35: The auto diagnosis tool presents a series of five outputs, calculated for each of the six 3-month time ‘blocks’ submitted
A36: A traffic-light system is used to present percentage output scores relative to likely importance, using <50% (‘green’, less important), 51-74% (‘amber’, important) and >74% (‘red’, very important).
A37: The five outputs are summarised for the ‘Current’ period, the ‘Recent’ period and the ‘Historic’ period, alongside a fourth output period to describe the relative importance of seasonality.
A39: Output parameters - Specific
A40: Contagious Issues: The percentage ‘score’ summarising the relative importance of contagious mastitis on farm, calculated from the numerical scores attributed to appropriate ‘contagious’ parameters (e.g. a poor actual dry period cure rate from the SCC inputs would contribute points to the overall ‘contagious’ score).
A41: A very high score (75% or greater) should alert the advisor to a possible ‘Contagious Lactation/Contagious Dry Period’ herd diagnosis and prioritisation of control measures directed at reducing transmission of infection between cows during milking and optimising cure rate across the dry period should be considered.
A42: Appropriate priorities depending on current herd management aimed at reducing transmission of infection between cows in lactation should include:
A43: Segregation of ‘infected’ cows as measured by SCC parameters during the milking process, either physically (e.g. different group) or ‘virtually’ (e.g. identification and disinfection of milking equipment after use on these cows)
A44: Optimisation of the pre-milking routine to include rapid identification of clinical mastitis and the application of pre-milking teat disinfection
A45: Optimisation of post-milking teat disinfection (PMTD) routine to include rapid application of PMTD product and excellent coverage
A46: Consider vaccination to reduce the rate of transmission
A47: Appropriate biosecurity measures, for example screening cows bought onto the unit using SCC, California Mastitis Test, previous whole lactation SCC records etc
A49: Appropriate priorities depending on current herd management aimed at optimising cure of infected cows should include:
A50: The importance of antibiotic dry cow therapy (ADCT) for infected cows using an appropriate SCC threshold – for example, in a high cell count herd, using a low threshold and three consecutive monthly milk recordings to identify cows for treatment
A51: Reviewing treatment of clinical mastitis cases during lactation, particularly rapid identification and treatment of the first clinical case in lactation and the importance of extended intra-mammary therapy to improve the chance of cure
A52: Management of persistent infection (e.g. recurrent clinical mastitis, chronic high SCC cows) by drying-off infected quarters
A53: Culling decisions for persistently infected cows based on SCC and bacteriology data
A55: Dry Period Environment Issues: The percentage ‘score’ summarising the relative importance of the dry period origin environmental mastitis on farm, calculated from the numerical scores attributed to appropriate ‘dry period’ parameters (e.g. an increased dry period new infection rate from the SCC inputs would contribute points to the overall ‘dry period’ score).
A56: A very high score (75% or greater) should alert the advisor to a possible ‘Environmental Dry Period’ herd diagnosis and prioritisation of control measures directed at reducing new infections from the environment to cows during the dry period and at calving.
A57: Appropriate priorities depending on current herd management aimed at reducing transmission of infection from the environment during the dry period may include:
A58: The importance of optimising aseptic infusion of both antibiotic and non-antibiotic dry cow therapy to minimise the risk of new intra-mammary infection at the time of drying-off
A59: Consideration of environmental management for dry cow groups at pasture, e.g. spending no more than 2 weeks in any one area to prevent build-up of infection
A60: Consideration of environmental management for dry cow groups in cubicles, e.g. application of new, clean organic bedding daily
A61: Consideration of environmental management for dry cow groups in loose yards, e.g. completely cleaning out loose yards every 4 weeks
A62: The importance of loafing space and ventilation for dry cow groups managed indoors
A63: The importance of slurry management for housed dry cow groups, e.g. scraping passageways and feeding areas daily
A64: The importance of internal teat sealant alone in uninfected cows as measured by SCC
A66: Lactating Period Environment Issues: The percentage ‘score’ summarising the relative importance of the lactating period origin environmental mastitis on farm, calculated from the numerical scores attributed to appropriate ‘lactating period’ parameters (e.g. an increased lactation new infection rate from the SCC inputs would contribute points to the overall ‘lactating period’ score).
A67: A very high score (75% or greater) should alert the advisor to a possible ‘Environmental Lactating Period’ herd diagnosis and prioritisation of control measures directed at reducing new infections from the environment to cows during the lactating period.
A68: Appropriate priorities depending on current herd management aimed at reducing transmission of infection from the environment during lactation may include:
A69: Consideration of environmental management for lactating cow groups in cubicles, e.g. application of new, clean inorganic bedding every other day
A70: Consideration of environmental management for lactating cow groups in loose yards, e.g. application of new, clean straw bedding every day or twice daily in the face of an increased challenge
A71: Consideration of environmental management for lactating cow groups at pasture, e.g. spending no more than 2 weeks in any one area to prevent build-up of infection
A72: The importance of loafing space and ventilation for lactating cow groups managed indoors
A73: The importance of pre-milking teat disinfection
A75: Specific Heifer Management Issues: The percentage ‘score’ summarising the relative importance of heifer mastitis on farm, calculated from the numerical scores attributed to appropriate ‘heifer’ parameters (e.g. an increased dry period infection rate from the SCC inputs would contribute points to the overall ‘heifer’ score).
A76: A very high score (75% or greater) should alert the advisor to a possible ‘Environmental Dry Period’ herd diagnosis and prioritisation of control measures directed at reducing new infections from the environment to heifers during the pre- calving period.
A77: Appropriate priorities depending on current herd management aimed at reducing transmission of infection from the environment during the pre-calving period may include:
A78: Consideration of environmental management for heifer groups at pasture, e.g. spending no more than 2 weeks in any one area to prevent build-up of infection
A79: Consideration of environmental management for heifer groups in cubicles, e.g. application of new, clean organic bedding daily
A80: Consideration of environmental management for heifer groups in loose yards, e.g. completely cleaning out loose yards every 4 weeks
A81: The importance of loafing space and ventilation for pre-calving heifer groups managed indoors
A82: The importance of fly control for pre-calving heifers
A84: Clinical Mastitis Recurrence Issues: The percentage ‘score’ summarising the relative importance of recurrent mastitis on farm, calculated from the numerical score attributed to the ‘recurrence’ parameter (i.e. an increased clinical mastitis recurrence factor from the CM inputs would contribute points to the overall ‘recurrence’ score)
A85: A very high score (75% or greater) would alert the advisor to both ‘Contagious’ and ‘Environmental’ herd diagnosis as both Gram-positive and Gram-negative pathogens are able to cause persistent intra-mammary infection during lactation. Prioritisation of control measures directed at optimising cure rate during the lactating period for new (first or ‘index’) cases of clinical mastitis are likely to involve management of the first clinical mastitis case in lactation.
A86: Appropriate priorities depending on current herd management aimed at optimising cure of new (first or ‘index’) cases of clinical mastitis may include:
A87: Rapid identification of clinical mastitis during milking, e.g. fore-stripping or in-line mastitis detectors
A88: Aseptic collection of clinical mastitis samples, labelling and storage
A89: Submission of 10 clinical mastitis samples two or three times a year to a specialist laboratory to review aetiology
A90: Rapid treatment of new clinical mastitis cases with intra-mammary antibiotic
A91: Review of intra-mammary antibiotic treatment protocol with your veterinary surgeon
A92: Monitoring cure rates for new clinical mastitis cases using clinical and SCC outcomes
A94: ‘Current’ Score: The percentage score for the appropriate output parameter for the last three months only. A very high score alerts the advisor to a recent trend and an emergent issue in the output parameter of interest
A95: ‘Recent’ Score: The percentage score for the appropriate output parameter for the last 12 months only. A very high score alerts the advisor to a relatively recent trend and a likely issue in the output parameter of interest
A96: ‘Historic’ Score: The percentage score for the appropriate output parameter for the period 12-18 months ago only. A very high score alerts the advisor to an historic trend and whilst the issue with the output parameter of interest may have been important, this may not be the case currently.
A97: ‘Seasonality’ Score: The percentage score across the appropriate output parameters that describe seasonality for each of the four main outputs (contagious, dry period, lactating period and heifer management. For example, a high percentage ‘Seasonality’ score for lactation would indicate large variation in appropriate lactation parameters between each of the six 3-month time periods entered.
A98: A very high score (75% or greater) should alert the advisor to an ‘Environmental’ herd diagnosis and prioritisation of control measures directed at reducing new infections from the environment at particular times of the year (e.g. winter housing, dry cow management in the summer etc.)

Sheet Further Reading
A1: FURTHER READING
A2: AHDB Dairy (2012) DairyCo Mastitis Control Plan 3 year report (2008-2012) https://dairy.ahdb.org.uk/resources-library/technical-information/health-welfare/dairyco-mastitis-control-plan-3-year-report-(2008-2012)/
A3: Bradley AJ, Green MJ. (2000) A study of the incidence and significance of intramammary enterobacterial infections acquired during the dry period. J Dairy Sci. Sep 83(9):1957-65.
A4: Bradley A, Green M (2005) Use and interpretation of somatic cell count data in dairy cows. In Practice 27:310-315.
A5: Bradley AJ, Breen JE and Green MJ (2007) Mastitis pattern analysis – a fresh look at the analysis of bovine mastitis: Part I – somatic cell count data. UK Vet Livestock 2007 12:7, 29-35
A6: Bradley AJ, Breen JE and Green MJ (2008) Mastitis pattern analysis – a fresh look at the analysis of bovine mastitis: Part 2 – clinical mastitis data. UK Vet Livestock 13:1, 30-35
A7: Green MJ, Green LE, Schukken YH, Bradley AJ, Peeler EJ, Barkema HW, de Haas Y, Collis VJ, Medley GF. (2004) Somatic cell count distributions during lactation predict clinical mastitis. J Dairy Sci. May 87(5):1256-64.
